[Event "*** Titled Tuesday Blitz"]
[Site "Chess.com"]
[Date "2018.12.04"]
[Round "6"]
[White "Frolik67"]
[Black "matiss90"]
[Result "0-1"]
[WhiteElo "2629"]
[BlackElo "2431"]
[TimeControl "180+2"]
[EndTime "14:21:24 PST"]
[Termination "matiss90 won by checkmate"]

1. e4 {[%clk 0:03:01.9]} 1... c5 {[%clk 0:03:00.8]} 2. Nf3 {[%clk 0:03:02.4]}
2... d6 {[%clk 0:03:01.7]} 3. Bb5+ {[%clk 0:03:03]} 3... Bd7 {[%clk 0:03:02.1]}
4. Bxd7+ {[%clk 0:03:04.1]} 4... Qxd7 {[%clk 0:03:04]} 5. O-O {[%clk 0:03:05.1]}
5... Nf6 {[%clk 0:03:05.4]} 6. Re1 {[%clk 0:03:06]} 6... Nc6 {[%clk 0:03:06.3]}
7. c3 {[%clk 0:03:07.4]} 7... g5 {[%clk 0:03:06.7]} 8. d4 {[%clk 0:02:55.9]}
8... g4 {[%clk 0:03:05.8]} 9. Nh4 {[%clk 0:02:56.5]} 9... cxd4 {[%clk
0:03:05.3]} 10. cxd4 {[%clk 0:02:58.4]} 10... O-O-O {[%clk 0:03:01.6]} 11. Nc3
{[%clk 0:02:57.1]} 11... h5 {[%clk 0:02:58.3]} 12. Be3 {[%clk 0:02:57.4]} 12...
d5 {[%clk 0:02:42.1]} 13. Rc1 {[%clk 0:02:50.4]} 13... Nxe4 {[%clk 0:02:33.2]}
14. Qa4 {[%clk 0:02:36.5]} 14... Nxc3 {[%clk 0:02:25.6]} 15. Rxc3 {[%clk
0:02:38.4]} 15... Kb8 {[%clk 0:02:25.4]} 16. Rec1 {[%clk 0:02:23.6]} 16... Rc8
{[%clk 0:02:25.2]} 17. b4 {[%clk 0:02:00.3]} 17... a6 {[%clk 0:01:42.8]} 18. b5
{[%clk 0:01:58.7]} 18... axb5 {[%clk 0:01:23.1]} 19. Qxb5 {[%clk 0:01:57.5]}
19... e6 {[%clk 0:01:23]} 20. a4 {[%clk 0:01:38.2]} 20... Bd6 {[%clk 0:01:22.7]}
21. a5 {[%clk 0:01:38.1]} 21... Ne5 {[%clk 0:01:11.8]} 22. Qb3 {[%clk
0:01:14.5]} 22... Rxc3 {[%clk 0:01:09.3]} 23. Rxc3 {[%clk 0:01:16.4]} 23... Nc4
{[%clk 0:01:05.6]} 24. a6 {[%clk 0:01:17.6]} 24... Rc8 {[%clk 0:01:02.4]} 25. h3
{[%clk 0:01:04.6]} 25... gxh3 {[%clk 0:00:58.9]} 26. gxh3 {[%clk 0:01:04.9]}
26... b5 {[%clk 0:00:56.5]} 27. Nf3 {[%clk 0:01:03]} 27... b4 {[%clk 0:00:49.4]}
28. Rc2 {[%clk 0:00:57]} 28... f6 {[%clk 0:00:44.6]} 29. Nd2 {[%clk 0:00:56.9]}
29... Qb5 {[%clk 0:00:42.5]} 30. Ra2 {[%clk 0:00:51.4]} 30... Ka7 {[%clk
0:00:40.9]} 31. Kg2 {[%clk 0:00:46.5]} 31... Ka8 {[%clk 0:00:33]} 32. h4 {[%clk
0:00:46.8]} 32... Rg8+ {[%clk 0:00:33.5]} 33. Kf3 {[%clk 0:00:46.5]} 33... e5
{[%clk 0:00:34.1]} 34. Qb1 {[%clk 0:00:32.6]} 34... Nxd2+ {[%clk 0:00:21]} 35.
Bxd2 {[%clk 0:00:34.5]} 35... e4+ {[%clk 0:00:20.9]} 36. Ke3 {[%clk 0:00:36.2]}
36... f5 {[%clk 0:00:21.7]} 37. f3 {[%clk 0:00:35.9]} 37... f4+ {[%clk
0:00:21.3]} 38. Kf2 {[%clk 0:00:37.4]} 38... e3+ {[%clk 0:00:19.7]} 39. Bxe3
{[%clk 0:00:39.1]} 39... fxe3+ {[%clk 0:00:21.2]} 40. Kxe3 {[%clk 0:00:41]}
40... Qe8+ {[%clk 0:00:18.5]} 41. Kf2 {[%clk 0:00:42.2]} 41... Bg3+ {[%clk
0:00:19.3]} 42. Kf1 {[%clk 0:00:43.2]} 42... Qb5+ {[%clk 0:00:18.2]} 43. Re2
{[%clk 0:00:42.5]} 43... Re8 {[%clk 0:00:19.1]} 44. Kg1 {[%clk 0:00:41.1]} 44...
Qxe2 {[%clk 0:00:18.6]} 45. Qxb4 {[%clk 0:00:41.4]} 45... Qf2+ {[%clk 0:00:19]}
46. Kh1 {[%clk 0:00:42.6]} 46... Qh2# {[%clk 0:00:19.8]} 0-1

[Event "*** Titled Tuesday Blitz"]
[Site "Chess.com"]
[Date "2018.12.04"]
[Round "6"]
[White "wadsy27"]
[Black "Satscho"]
[Result "1-0"]
[WhiteElo "2414"]
[BlackElo "2310"]
[TimeControl "180+2"]
[EndTime "14:21:27 PST"]
[Termination "wadsy27 won on time"]

1. c4 {[%clk 0:03:00.8]} 1... Nf6 {[%clk 0:02:59.8]} 2. g3 {[%clk 0:03:01.7]}
2... g6 {[%clk 0:03:00.9]} 3. Bg2 {[%clk 0:03:03.4]} 3... Bg7 {[%clk 0:02:59.2]}
4. Nc3 {[%clk 0:03:04.9]} 4... O-O {[%clk 0:02:55.6]} 5. Nf3 {[%clk 0:03:05.2]}
5... d6 {[%clk 0:02:55.6]} 6. O-O {[%clk 0:03:05.9]} 6... Nc6 {[%clk 0:02:53.3]}
7. Rb1 {[%clk 0:03:06.8]} 7... a5 {[%clk 0:02:46.1]} 8. d3 {[%clk 0:03:05.6]}
8... e5 {[%clk 0:02:44]} 9. a3 {[%clk 0:03:06.5]} 9... Nd4 {[%clk 0:02:44.1]}
10. Nd2 {[%clk 0:03:03.3]} 10... c6 {[%clk 0:02:38]} 11. e3 {[%clk 0:03:03.8]}
11... Ne6 {[%clk 0:02:38.8]} 12. b4 {[%clk 0:03:02.5]} 12... axb4 {[%clk
0:02:40.7]} 13. axb4 {[%clk 0:03:03.2]} 13... d5 {[%clk 0:02:34.9]} 14. Bb2
{[%clk 0:03:03.2]} 14... Re8 {[%clk 0:02:13.7]} 15. b5 {[%clk 0:02:51.7]} 15...
Ng5 {[%clk 0:02:13.4]} 16. h4 {[%clk 0:02:51]} 16... Ne6 {[%clk 0:02:11.9]} 17.
Qb3 {[%clk 0:02:45]} 17... d4 {[%clk 0:02:05.6]} 18. Nce4 {[%clk 0:02:44.2]}
18... Nxe4 {[%clk 0:02:01.9]} 19. Nxe4 {[%clk 0:02:46.1]} 19... c5 {[%clk
0:02:03.4]} 20. exd4 {[%clk 0:02:38]} 20... exd4 {[%clk 0:01:59.8]} 21. Ra1
{[%clk 0:02:20.2]} 21... Rxa1 {[%clk 0:01:48.1]} 22. Rxa1 {[%clk 0:02:20.1]}
22... f5 {[%clk 0:01:49.6]} 23. Nd2 {[%clk 0:02:17.4]} 23... f4 {[%clk
0:01:46.9]} 24. Ra8 {[%clk 0:02:12.6]} 24... fxg3 {[%clk 0:01:43]} 25. fxg3
{[%clk 0:02:13.5]} 25... Qc7 {[%clk 0:01:36.4]} 26. Ne4 {[%clk 0:02:11.3]} 26...
b6 {[%clk 0:01:28.7]} 27. Bc1 {[%clk 0:01:51.6]} 27... Rf8 {[%clk 0:01:24.3]}
28. Qa3 {[%clk 0:01:42.2]} 28... Bb7 {[%clk 0:01:12.2]} 29. Rxf8+ {[%clk
0:01:39.2]} 29... Kxf8 {[%clk 0:01:10.7]} 30. Qa7 {[%clk 0:01:39.9]} 30... Be5
{[%clk 0:00:50.6]} 31. Ng5 {[%clk 0:01:36]} 31... Nxg5 {[%clk 0:00:45.8]} 32.
Qxb7 {[%clk 0:01:36.1]} 32... Qxb7 {[%clk 0:00:34.1]} 33. Bxb7 {[%clk 0:01:38]}
33... Nf7 {[%clk 0:00:26.3]} 34. Kg2 {[%clk 0:01:37.9]} 34... Nd6 {[%clk
0:00:27.4]} 35. Bd5 {[%clk 0:01:17]} 35... Nf5 {[%clk 0:00:27.3]} 36. g4 {[%clk
0:01:14.9]} 36... Nxh4+ {[%clk 0:00:06.9]} 37. Kh3 {[%clk 0:01:15.5]} 37... g5
{[%clk 0:00:07]} 38. Bxg5 {[%clk 0:01:15.1]} 38... Ng6 {[%clk 0:00:08.6]} 39.
Be4 {[%clk 0:01:05.8]} 39... Kg7 {[%clk 0:00:05.5]} 40. Bd8 {[%clk 0:01:00.2]}
40... Nf4+ {[%clk 0:00:06.8]} 41. Kh4 {[%clk 0:01:00.7]} 41... Ng6+ {[%clk
0:00:06.6]} 42. Bxg6 {[%clk 0:00:59.3]} 42... hxg6 {[%clk 0:00:06.7]} 43. Bxb6
{[%clk 0:01:00.7]} 43... Bd6 {[%clk 0:00:03]} 44. Ba7 {[%clk 0:01:01.6]} 1-0

[Event "*** Titled Tuesday Blitz"]
[Site "Chess.com"]
[Date "2018.12.04"]
[Round "6"]
[White "Shahinyan_ChessMood"]
[Black "Keaton87"]
[Result "0-1"]
[WhiteElo "2655"]
[BlackElo "2546"]
[TimeControl "180+2"]
[EndTime "14:21:32 PST"]
[Termination "Keaton87 won on time"]

1. c4 {[%clk 0:03:01.9]} 1... Nf6 {[%clk 0:03:00.3]} 2. Nc3 {[%clk 0:03:02.3]}
2... g6 {[%clk 0:03:01.6]} 3. g3 {[%clk 0:03:03]} 3... d5 {[%clk 0:03:02.7]} 4.
Bg2 {[%clk 0:03:04.9]} 4... d4 {[%clk 0:03:00.4]} 5. Nb1 {[%clk 0:03:01]} 5...
Bg7 {[%clk 0:03:01.2]} 6. d3 {[%clk 0:03:01.5]} 6... O-O {[%clk 0:03:02.3]} 7.
b4 {[%clk 0:03:02.3]} 7... e5 {[%clk 0:02:58.8]} 8. Nd2 {[%clk 0:02:56.6]} 8...
a5 {[%clk 0:02:56.3]} 9. b5 {[%clk 0:02:55]} 9... Nbd7 {[%clk 0:02:57.4]} 10.
Ngf3 {[%clk 0:02:54]} 10... Re8 {[%clk 0:02:58.4]} 11. O-O {[%clk 0:02:54.2]}
11... Nc5 {[%clk 0:02:58.4]} 12. Nb3 {[%clk 0:02:50.2]} 12... Bf8 {[%clk
0:02:55]} 13. Nxc5 {[%clk 0:02:43.7]} 13... Bxc5 {[%clk 0:02:56.9]} 14. Bg5
{[%clk 0:02:45.2]} 14... Bf8 {[%clk 0:02:46.3]} 15. Qc1 {[%clk 0:02:40.9]} 15...
Bg7 {[%clk 0:02:47]} 16. Nd2 {[%clk 0:02:27.4]} 16... h6 {[%clk 0:02:43.7]} 17.
Bxf6 {[%clk 0:02:27.4]} 17... Qxf6 {[%clk 0:02:45.3]} 18. c5 {[%clk 0:02:21.7]}
18... Qe7 {[%clk 0:02:41.3]} 19. Qc2 {[%clk 0:02:13.2]} 19... Kh7 {[%clk
0:02:38.6]} 20. Rfc1 {[%clk 0:02:10.3]} 20... f5 {[%clk 0:02:32.1]} 21. Rab1
{[%clk 0:02:08.1]} 21... h5 {[%clk 0:02:27.6]} 22. Qa4 {[%clk 0:01:28.3]} 22...
h4 {[%clk 0:02:25.8]} 23. Nb3 {[%clk 0:01:14.7]} 23... Rd8 {[%clk 0:02:10.4]}
24. Nxa5 {[%clk 0:01:09.2]} 24... Qg5 {[%clk 0:01:58.9]} 25. Qb4 {[%clk
0:00:49.2]} 25... f4 {[%clk 0:01:58.7]} 26. Rf1 {[%clk 0:00:24.8]} 26... e4
{[%clk 0:01:30.3]} 27. Bxe4 {[%clk 0:00:11.2]} 27... fxg3 {[%clk 0:01:31.9]} 28.
fxg3 {[%clk 0:00:10.1]} 28... hxg3 {[%clk 0:01:33.8]} 29. Rf3 {[%clk 0:00:10.9]}
29... gxh2+ {[%clk 0:01:34.2]} 30. Kh1 {[%clk 0:00:12.2]} 30... Bg4 {[%clk
0:01:28.3]} 31. Rf2 {[%clk 0:00:13.4]} 31... Be5 {[%clk 0:01:21.9]} 32. Nc4
{[%clk 0:00:12.5]} 32... Bg3 {[%clk 0:01:19.3]} 33. Rg2 {[%clk 0:00:11.2]} 33...
Qh4 {[%clk 0:00:58.4]} 34. a3 {[%clk 0:00:06.5]} 34... Bh3 {[%clk 0:00:58.7]}
35. Bxb7 {[%clk 0:00:04.6]} 35... Bxg2+ {[%clk 0:00:59.3]} 36. Bxg2 {[%clk
0:00:06.5]} 36... Rab8 {[%clk 0:00:54.8]} 37. b6 {[%clk 0:00:06.1]} 37... cxb6
{[%clk 0:00:56]} 38. cxb6 {[%clk 0:00:08]} 38... Re8 {[%clk 0:00:41.9]} 39. Qb2
{[%clk 0:00:04.2]} 39... Be1 {[%clk 0:00:38.8]} 40. Qc1 {[%clk 0:00:03.9]} 40...
Rxe2 {[%clk 0:00:35.2]} 41. Bd5 {[%clk 0:00:02.5]} 41... Qf2 {[%clk 0:00:33.4]}
0-1

[Event "*** Titled Tuesday Blitz"]
[Site "Chess.com"]
[Date "2018.12.04"]
[Round "6"]
[White "nochewycandy"]
[Black "KRASAVCHIK2002"]
[Result "0-1"]
[WhiteElo "2272"]
[BlackElo "2386"]
[TimeControl "180+2"]
[EndTime "14:21:32 PST"]
[Termination "KRASAVCHIK2002 won by checkmate"]

1. c4 {[%clk 0:03:01.9]} 1... e5 {[%clk 0:02:59.9]} 2. g3 {[%clk 0:03:01.8]}
2... Nf6 {[%clk 0:03:00.6]} 3. Bg2 {[%clk 0:03:02]} 3... d5 {[%clk 0:03:01.6]}
4. cxd5 {[%clk 0:03:03.9]} 4... Nxd5 {[%clk 0:03:02.6]} 5. Nf3 {[%clk
0:03:03.8]} 5... Nc6 {[%clk 0:03:01.3]} 6. O-O {[%clk 0:02:59.7]} 6... Nb6
{[%clk 0:03:01.7]} 7. d3 {[%clk 0:02:56]} 7... Be7 {[%clk 0:03:01.8]} 8. a3
{[%clk 0:02:56.7]} 8... O-O {[%clk 0:03:01.9]} 9. b4 {[%clk 0:02:56.9]} 9... Be6
{[%clk 0:02:58.5]} 10. Bb2 {[%clk 0:02:55.4]} 10... f6 {[%clk 0:02:54.2]} 11.
Nbd2 {[%clk 0:02:43.5]} 11... Qd7 {[%clk 0:02:20.7]} 12. Rc1 {[%clk 0:02:42.2]}
12... a5 {[%clk 0:02:14.7]} 13. b5 {[%clk 0:02:34]} 13... Nd8 {[%clk 0:02:14.9]}
14. a4 {[%clk 0:02:28.5]} 14... c6 {[%clk 0:02:13]} 15. d4 {[%clk 0:02:24]}
15... cxb5 {[%clk 0:02:07.7]} 16. dxe5 {[%clk 0:02:23.7]} 16... Nxa4 {[%clk
0:02:07]} 17. Ba1 {[%clk 0:02:18.2]} 17... Nc6 {[%clk 0:01:38.4]} 18. exf6
{[%clk 0:02:14.6]} 18... Bxf6 {[%clk 0:01:38.8]} 19. Bxf6 {[%clk 0:02:13]} 19...
gxf6 {[%clk 0:01:24.7]} 20. Qc2 {[%clk 0:01:57.4]} 20... Rac8 {[%clk 0:01:13.8]}
21. Qb1 {[%clk 0:01:51.8]} 21... b4 {[%clk 0:01:11.3]} 22. Ne4 {[%clk
0:01:49.8]} 22... Kg7 {[%clk 0:00:31.5]} 23. Rfd1 {[%clk 0:01:44.5]} 23... Qe7
{[%clk 0:00:31.9]} 24. Qa1 {[%clk 0:01:39.7]} 24... b5 {[%clk 0:00:22.8]} 25.
Nfg5 {[%clk 0:01:16]} 25... b3 {[%clk 0:00:22.7]} 26. Qb1 {[%clk 0:01:08.7]}
26... fxg5 {[%clk 0:00:19.9]} 27. Nd6 {[%clk 0:01:06.6]} 27... Rcd8 {[%clk
0:00:16.7]} 28. Rxc6 {[%clk 0:01:05.3]} 28... Nc3 {[%clk 0:00:11.1]} 29. Qb2
{[%clk 0:00:53.7]} 29... b4 {[%clk 0:00:10.4]} 30. Rd3 {[%clk 0:00:52.1]} 30...
a4 {[%clk 0:00:09.6]} 31. Nb5 {[%clk 0:00:44.5]} 31... Rxd3 {[%clk 0:00:06]} 32.
exd3 {[%clk 0:00:45.2]} 32... Bd7 {[%clk 0:00:06.4]} 33. Nxc3 {[%clk 0:00:43.1]}
33... Qe1+ {[%clk 0:00:06.6]} 34. Bf1 {[%clk 0:00:42.4]} 34... Bxc6 {[%clk
0:00:07.2]} 35. Ne4+ {[%clk 0:00:21.3]} 35... Kh6 {[%clk 0:00:07.9]} 36. Nd6
{[%clk 0:00:19.1]} 36... Qc3 {[%clk 0:00:07.3]} 37. Qe2 {[%clk 0:00:18]} 37...
b2 {[%clk 0:00:07.2]} 38. Qe6+ {[%clk 0:00:19]} 38... Qf6 {[%clk 0:00:07.9]} 39.
Qh3+ {[%clk 0:00:19.3]} 39... Kg7 {[%clk 0:00:08]} 40. Be2 {[%clk 0:00:20.3]}
40... Qxf2# {[%clk 0:00:08.6]} 0-1

[Event "*** Titled Tuesday Blitz"]
[Site "Chess.com"]
[Date "2018.12.04"]
[Round "6"]
[White "Bad_left_hook"]
[Black "Mikhail_Golubev"]
[Result "1-0"]
[WhiteElo "2511"]
[BlackElo "2459"]
[TimeControl "180+2"]
[EndTime "14:21:33 PST"]
[Termination "Bad_left_hook won by resignation"]

1. d4 {[%clk 0:03:00.6]} 1... Nf6 {[%clk 0:03:00.2]} 2. c4 {[%clk 0:03:01.4]}
2... g6 {[%clk 0:03:00.6]} 3. Nc3 {[%clk 0:03:02.2]} 3... Bg7 {[%clk 0:03:02.1]}
4. e4 {[%clk 0:03:03.6]} 4... d6 {[%clk 0:03:03.5]} 5. Nf3 {[%clk 0:03:04.9]}
5... O-O {[%clk 0:03:04.4]} 6. Be2 {[%clk 0:03:06.2]} 6... e5 {[%clk 0:03:05.8]}
7. O-O {[%clk 0:03:07.6]} 7... Nc6 {[%clk 0:03:06.8]} 8. d5 {[%clk 0:03:08.9]}
8... Ne7 {[%clk 0:03:08.1]} 9. Ne1 {[%clk 0:03:10]} 9... Ne8 {[%clk 0:03:05.5]}
10. Be3 {[%clk 0:03:10.9]} 10... f5 {[%clk 0:03:06.4]} 11. f3 {[%clk 0:03:12]}
11... f4 {[%clk 0:03:07.3]} 12. Bf2 {[%clk 0:03:13.4]} 12... g5 {[%clk
0:03:08.8]} 13. Nd3 {[%clk 0:03:14.6]} 13... Ng6 {[%clk 0:03:03.3]} 14. c5
{[%clk 0:03:15.2]} 14... Rf7 {[%clk 0:03:02]} 15. Kh1 {[%clk 0:03:06.6]} 15...
Bf8 {[%clk 0:02:58.9]} 16. a4 {[%clk 0:03:06]} 16... h5 {[%clk 0:02:59.1]} 17.
a5 {[%clk 0:03:06.7]} 17... Nf6 {[%clk 0:02:34.8]} 18. a6 {[%clk 0:03:05.2]}
18... b6 {[%clk 0:02:24.3]} 19. cxb6 {[%clk 0:03:05.7]} 19... cxb6 {[%clk
0:02:21.2]} 20. Nb4 {[%clk 0:03:06.2]} 20... g4 {[%clk 0:02:21.9]} 21. Nc6
{[%clk 0:03:04.3]} 21... Qe8 {[%clk 0:02:21.4]} 22. Nb5 {[%clk 0:02:45.1]} 22...
g3 {[%clk 0:02:17.7]} 23. Bg1 {[%clk 0:02:42.1]} 23... Bh3 {[%clk 0:02:10.9]}
24. gxh3 {[%clk 0:02:06.7]} 24... Nh4 {[%clk 0:01:46.7]} 25. Rf2 {[%clk
0:02:07.2]} 25... Qd7 {[%clk 0:01:28]} 26. Bf1 {[%clk 0:02:02]} 26... Nh7 {[%clk
0:00:41.8]} 27. Rg2 {[%clk 0:01:29.1]} 27... Ng5 {[%clk 0:00:19.9]} 28. hxg3
{[%clk 0:01:04.6]} 28... Nxg2 {[%clk 0:00:20.5]} 29. Bxg2 {[%clk 0:01:03.5]}
29... fxg3 {[%clk 0:00:21.8]} 30. f4 {[%clk 0:00:34.9]} 30... exf4 {[%clk
0:00:19.8]} 31. Qxh5 {[%clk 0:00:34]} 31... Rg7 {[%clk 0:00:19.1]} 32. Rf1
{[%clk 0:00:27]} 32... f3 {[%clk 0:00:17.1]} 33. Bxf3 {[%clk 0:00:24.1]} 33...
Nxf3 {[%clk 0:00:17.6]} 34. Rxf3 {[%clk 0:00:23.8]} 34... Re8 {[%clk 0:00:18]}
35. Nc3 {[%clk 0:00:17.1]} 35... Be7 {[%clk 0:00:15.3]} 36. Kg2 {[%clk
0:00:17.5]} 36... Bg5 {[%clk 0:00:09.4]} 37. Bd4 {[%clk 0:00:17.3]} 37... Rf8
{[%clk 0:00:07.2]} 38. Rxf8+ {[%clk 0:00:15.6]} 1-0

[Event "*** Titled Tuesday Blitz"]
[Site "Chess.com"]
[Date "2018.12.04"]
[Round "6"]
[White "VerdeNotte"]
[Black "Mykola-Bortnyk"]
[Result "0-1"]
[WhiteElo "2841"]
[BlackElo "2850"]
[TimeControl "180+2"]
[EndTime "14:21:41 PST"]
[Termination "Mykola-Bortnyk won by resignation"]

1. e4 {[%clk 0:03:01.9]} 1... Nf6 {[%clk 0:03:01]} 2. d3 {[%clk 0:02:57.7]} 2...
e5 {[%clk 0:02:59.4]} 3. g3 {[%clk 0:02:55.7]} 3... d5 {[%clk 0:02:59.1]} 4.
exd5 {[%clk 0:02:54.7]} 4... Nxd5 {[%clk 0:02:58.5]} 5. Nf3 {[%clk 0:02:55]}
5... Nc6 {[%clk 0:02:59]} 6. Bg2 {[%clk 0:02:56.1]} 6... Bc5 {[%clk 0:02:46.6]}
7. O-O {[%clk 0:02:51.8]} 7... O-O {[%clk 0:02:47.5]} 8. Re1 {[%clk 0:02:52.3]}
8... f6 {[%clk 0:02:45.8]} 9. Nc3 {[%clk 0:02:47.9]} 9... Nxc3 {[%clk
0:02:41.9]} 10. bxc3 {[%clk 0:02:49.2]} 10... Kh8 {[%clk 0:02:34.8]} 11. Rb1
{[%clk 0:02:41.9]} 11... Bg4 {[%clk 0:02:12.1]} 12. h3 {[%clk 0:02:41.8]} 12...
Bh5 {[%clk 0:02:13]} 13. g4 {[%clk 0:02:37.4]} 13... Bf7 {[%clk 0:02:13.9]} 14.
Rxb7 {[%clk 0:02:35.2]} 14... Bb6 {[%clk 0:02:14.8]} 15. Ng5 {[%clk 0:02:24.5]}
15... Bd5 {[%clk 0:02:14.7]} 16. Bxd5 {[%clk 0:02:24]} 16... Qxd5 {[%clk
0:02:15.8]} 17. c4 {[%clk 0:02:08.2]} 17... Qd7 {[%clk 0:01:59.8]} 18. Ne4
{[%clk 0:02:03.1]} 18... Nd8 {[%clk 0:01:55.4]} 19. Rxb6 {[%clk 0:01:57.9]}
19... axb6 {[%clk 0:01:57.3]} 20. a3 {[%clk 0:01:59.1]} 20... Ne6 {[%clk
0:01:57.2]} 21. Ng3 {[%clk 0:01:53.7]} 21... Rfd8 {[%clk 0:01:47.6]} 22. Bb2
{[%clk 0:01:47.4]} 22... Nd4 {[%clk 0:01:46.7]} 23. Re3 {[%clk 0:01:36.4]} 23...
Qa4 {[%clk 0:01:34.5]} 24. Bxd4 {[%clk 0:01:27.6]} 24... Rxd4 {[%clk 0:01:35.6]}
25. g5 {[%clk 0:01:23.9]} 25... Qxa3 {[%clk 0:01:33]} 26. gxf6 {[%clk
0:01:06.3]} 26... gxf6 {[%clk 0:01:33.9]} 27. Qf3 {[%clk 0:01:07.4]} 27... Rf4
{[%clk 0:01:25.6]} 28. Qc6 {[%clk 0:00:57.2]} 28... Rg8 {[%clk 0:01:24]} 29. Kg2
{[%clk 0:00:39.9]} 29... Qa8 {[%clk 0:01:19]} 30. Qxa8 {[%clk 0:00:38.7]} 30...
Rxa8 {[%clk 0:01:20.9]} 31. Ne4 {[%clk 0:00:22.5]} 31... Ra2 {[%clk 0:01:17.9]}
32. Re2 {[%clk 0:00:20.1]} 32... c6 {[%clk 0:01:03.6]} 33. Kg3 {[%clk
0:00:17.8]} 33... Ra8 {[%clk 0:01:01.6]} 34. Kg2 {[%clk 0:00:13.8]} 34... Kg7
{[%clk 0:00:57]} 35. c5 {[%clk 0:00:13.4]} 35... bxc5 {[%clk 0:00:54.3]} 36.
Nxc5 {[%clk 0:00:14.3]} 36... Rb4 {[%clk 0:00:50.8]} 37. Ne4 {[%clk 0:00:12.5]}
37... Kf7 {[%clk 0:00:50.2]} 38. Ng3 {[%clk 0:00:13.7]} 38... Ke6 {[%clk
0:00:50.1]} 39. Kf3 {[%clk 0:00:08.7]} 39... f5 {[%clk 0:00:46.3]} 40. Re1
{[%clk 0:00:08]} 40... Ra2 {[%clk 0:00:46]} 41. c4 {[%clk 0:00:03.3]} 41... Rb3
{[%clk 0:00:39.7]} 42. Ke3 {[%clk 0:00:04.8]} 42... f4+ {[%clk 0:00:40.6]} 43.
Ke4 {[%clk 0:00:05.6]} 43... fxg3 {[%clk 0:00:41.7]} 44. fxg3 {[%clk 0:00:07.5]}
44... Rbb2 {[%clk 0:00:42.5]} 45. Ke3 {[%clk 0:00:07.7]} 45... Rg2 {[%clk
0:00:42.9]} 46. Kf3 {[%clk 0:00:08.8]} 46... Raf2+ {[%clk 0:00:44]} 47. Kg4
{[%clk 0:00:10]} 47... Rf4+ {[%clk 0:00:43.8]} 48. Kh5 {[%clk 0:00:10.9]} 48...
Rxg3 {[%clk 0:00:44.6]} 0-1

[Event "*** Titled Tuesday Blitz"]
[Site "Chess.com"]
[Date "2018.12.04"]
[Round "6"]
[White "GulamaliRises"]
[Black "sergeikim"]
[Result "0-1"]
[WhiteElo "2648"]
[BlackElo "2464"]
[TimeControl "180+2"]
[EndTime "14:21:47 PST"]
[Termination "sergeikim won by checkmate"]

1. e4 {[%clk 0:03:01.9]} 1... e5 {[%clk 0:03:00.7]} 2. Nf3 {[%clk 0:03:02.9]}
2... Nc6 {[%clk 0:03:01.4]} 3. Bb5 {[%clk 0:03:04]} 3... a6 {[%clk 0:03:02.4]}
4. Ba4 {[%clk 0:03:04.9]} 4... Nf6 {[%clk 0:03:03]} 5. O-O {[%clk 0:03:05.8]}
5... Be7 {[%clk 0:03:03.9]} 6. Re1 {[%clk 0:03:06.6]} 6... b5 {[%clk 0:03:04.6]}
7. Bb3 {[%clk 0:03:07.9]} 7... O-O {[%clk 0:03:05.3]} 8. c3 {[%clk 0:03:09.3]}
8... d5 {[%clk 0:03:05.5]} 9. d4 {[%clk 0:03:03.1]} 9... Nxe4 {[%clk 0:02:59.6]}
10. dxe5 {[%clk 0:02:59.5]} 10... Be6 {[%clk 0:02:59]} 11. Nbd2 {[%clk
0:02:57.8]} 11... Nc5 {[%clk 0:02:58.7]} 12. Bc2 {[%clk 0:02:58.8]} 12... d4
{[%clk 0:02:59.6]} 13. Nb3 {[%clk 0:02:59]} 13... dxc3 {[%clk 0:02:19.8]} 14.
bxc3 {[%clk 0:02:48.2]} 14... Qxd1 {[%clk 0:02:15.7]} 15. Rxd1 {[%clk
0:02:50.1]} 15... Na4 {[%clk 0:02:15.9]} 16. Bd2 {[%clk 0:02:35.5]} 16... Rad8
{[%clk 0:02:10.2]} 17. Nbd4 {[%clk 0:02:27.4]} 17... Bd5 {[%clk 0:02:04.1]} 18.
Nxc6 {[%clk 0:02:22.5]} 18... Bxc6 {[%clk 0:02:04.1]} 19. Nd4 {[%clk 0:02:23.9]}
19... Bd5 {[%clk 0:02:01.4]} 20. Bxa4 {[%clk 0:02:23.3]} 20... bxa4 {[%clk
0:02:01.6]} 21. c4 {[%clk 0:02:24.7]} 21... Be4 {[%clk 0:01:33.8]} 22. Be3
{[%clk 0:02:12.5]} 22... c5 {[%clk 0:01:28]} 23. Ne2 {[%clk 0:02:02.8]} 23...
Bd3 {[%clk 0:01:25.2]} 24. Ng3 {[%clk 0:02:03.9]} 24... g6 {[%clk 0:00:57.9]}
25. Rac1 {[%clk 0:01:57.7]} 25... h5 {[%clk 0:00:39.8]} 26. Rc3 {[%clk 0:01:44]}
26... Be4 {[%clk 0:00:32.4]} 27. Rdc1 {[%clk 0:01:29.7]} 27... Bd3 {[%clk
0:00:27.2]} 28. f4 {[%clk 0:01:24]} 28... h4 {[%clk 0:00:26.3]} 29. Nh1 {[%clk
0:01:24.1]} 29... Bf5 {[%clk 0:00:24.4]} 30. Nf2 {[%clk 0:01:25]} 30... Rb8
{[%clk 0:00:20.8]} 31. Ra3 {[%clk 0:01:19.7]} 31... Rb4 {[%clk 0:00:16.5]} 32.
g4 {[%clk 0:01:14.3]} 32... hxg3 {[%clk 0:00:16.2]} 33. hxg3 {[%clk 0:01:16.2]}
33... Rd8 {[%clk 0:00:16.3]} 34. g4 {[%clk 0:01:16.8]} 34... Be6 {[%clk
0:00:17.2]} 35. Rac3 {[%clk 0:01:15.7]} 35... Rb2 {[%clk 0:00:17.4]} 36. R1c2
{[%clk 0:01:16.1]} 36... Rb1+ {[%clk 0:00:16.6]} 37. Kg2 {[%clk 0:01:17.6]}
37... Rdb8 {[%clk 0:00:14.2]} 38. Kf3 {[%clk 0:01:17.6]} 38... R8b2 {[%clk
0:00:13.4]} 39. Ke4 {[%clk 0:01:17.4]} 39... Rxc2 {[%clk 0:00:13.5]} 40. Rxc2
{[%clk 0:01:19.3]} 40... a3 {[%clk 0:00:11.7]} 41. f5 {[%clk 0:01:17.2]} 41...
gxf5+ {[%clk 0:00:09.6]} 42. gxf5 {[%clk 0:01:19.1]} 42... Bd7 {[%clk 0:00:11]}
43. Nd3 {[%clk 0:01:18.9]} 43... Bc6+ {[%clk 0:00:11.5]} 44. Kf4 {[%clk
0:01:20.1]} 44... Rd1 {[%clk 0:00:11.6]} 45. Nxc5 {[%clk 0:01:20.7]} 45... Rb1
{[%clk 0:00:08.3]} 46. Nd3 {[%clk 0:01:14.9]} 46... Rd1 {[%clk 0:00:07]} 47. Rd2
{[%clk 0:01:16.1]} 47... Rf1+ {[%clk 0:00:04.2]} 48. Rf2 {[%clk 0:00:53.2]}
48... Rg1 {[%clk 0:00:04.2]} 49. Bc5 {[%clk 0:00:47.9]} 49... Bg5# {[%clk
0:00:03.4]} 0-1